[Event "*** Titled Tuesday Blitz"]
[Site "Chess.com"]
[Date "2019.02.05"]
[Round "10"]
[White "MatthewG-p4p"]
[Black "rasmussvane"]
[Result "0-1"]
[WhiteElo "2684"]
[BlackElo "2766"]
[TimeControl "180+2"]
[EndTime "15:29:52 PST"]
[Termination "rasmussvane won by resignation"]

1. c4 {[%clk 0:02:58.3]} 1... e6 {[%clk 0:02:59.5]} 2. Nf3 {[%clk 0:02:58.4]}
2... d5 {[%clk 0:02:59.1]} 3. g3 {[%clk 0:03:00.1]} 3... dxc4 {[%clk 0:02:59.4]}
4. Qa4+ {[%clk 0:03:00.5]} 4... Bd7 {[%clk 0:03:00.6]} 5. Qxc4 {[%clk
0:03:01.7]} 5... c5 {[%clk 0:03:02.2]} 6. Bg2 {[%clk 0:03:02.7]} 6... Bc6 {[%clk
0:03:03.2]} 7. O-O {[%clk 0:03:03.6]} 7... Nf6 {[%clk 0:03:04.7]} 8. Nc3 {[%clk
0:02:55.9]} 8... Be7 {[%clk 0:02:58.6]} 9. d3 {[%clk 0:02:51]} 9... O-O {[%clk
0:02:57.9]} 10. Bd2 {[%clk 0:02:48]} 10... Nbd7 {[%clk 0:02:42.5]} 11. Rac1
{[%clk 0:02:42.4]} 11... Rc8 {[%clk 0:02:42.8]} 12. Qb3 {[%clk 0:02:33.5]} 12...
b6 {[%clk 0:02:30.7]} 13. Rfd1 {[%clk 0:02:32.2]} 13... Qc7 {[%clk 0:02:31.5]}
14. d4 {[%clk 0:02:28.6]} 14... Qb7 {[%clk 0:02:25.7]} 15. dxc5 {[%clk
0:02:07.5]} 15... Bxc5 {[%clk 0:02:06.1]} 16. Nh4 {[%clk 0:01:42.7]} 16... Bxg2
{[%clk 0:02:04.6]} 17. Nxg2 {[%clk 0:01:44.6]} 17... Rfd8 {[%clk 0:02:03.2]} 18.
Be3 {[%clk 0:01:44.2]} 18... h6 {[%clk 0:02:03.6]} 19. Nb5 {[%clk 0:01:40.3]}
19... a6 {[%clk 0:01:44.1]} 20. Nd6 {[%clk 0:01:35.9]} 20... Bxd6 {[%clk
0:01:44.8]} 21. Rxc8 {[%clk 0:01:34.7]} 21... Rxc8 {[%clk 0:01:41.1]} 22. Rxd6
{[%clk 0:01:35.5]} 22... Nd5 {[%clk 0:01:42.6]} 23. Nf4 {[%clk 0:01:19.4]} 23...
Qc7 {[%clk 0:01:27.2]} 24. Rxd5 {[%clk 0:00:58.1]} 24... exd5 {[%clk 0:01:27.5]}
25. Nxd5 {[%clk 0:00:59.1]} 25... Qd6 {[%clk 0:01:20.5]} 26. Qd3 {[%clk
0:00:47.2]} 26... b5 {[%clk 0:01:11.4]} 27. Bf4 {[%clk 0:00:43.7]} 27... Qe6
{[%clk 0:01:12.1]} 28. Nc7 {[%clk 0:00:37.1]} 28... Nc5 {[%clk 0:00:55.7]} 29.
Qd4 {[%clk 0:00:26.2]} 29... Qc6 {[%clk 0:00:45.2]} 30. Nd5 {[%clk 0:00:26]}
30... Re8 {[%clk 0:00:46.4]} 31. Nb4 {[%clk 0:00:15.2]} 31... Qc8 {[%clk
0:00:41.5]} 32. e3 {[%clk 0:00:14.5]} 32... Ne6 {[%clk 0:00:42]} 33. Qe5 {[%clk
0:00:11.6]} 33... Nxf4 {[%clk 0:00:40.2]} 34. Qxf4 {[%clk 0:00:13.5]} 34... Qc1+
{[%clk 0:00:41.5]} 35. Kg2 {[%clk 0:00:14.5]} 35... Qxb2 {[%clk 0:00:43]} 36. h4
{[%clk 0:00:11.6]} 36... a5 {[%clk 0:00:41.2]} 37. Nd5 {[%clk 0:00:08.8]} 37...
Qxa2 {[%clk 0:00:42.4]} 38. Nc7 {[%clk 0:00:10.3]} 38... Rc8 {[%clk 0:00:43.9]}
39. Qd6 {[%clk 0:00:09.9]} 39... Qc4 {[%clk 0:00:39.9]} 40. Nd5 {[%clk
0:00:10.1]} 40... Kh7 {[%clk 0:00:40.2]} 41. Kh2 {[%clk 0:00:08.8]} 41... Qc2
{[%clk 0:00:35.4]} 42. Qf4 {[%clk 0:00:09]} 42... f6 {[%clk 0:00:24]} 43. e4
{[%clk 0:00:09.3]} 43... Re8 {[%clk 0:00:21.7]} 44. Qf5+ {[%clk 0:00:10.2]}
44... Kg8 {[%clk 0:00:08.3]} 45. Nxf6+ {[%clk 0:00:11.5]} 45... Kf7 {[%clk
0:00:08.4]} 46. Nd5+ {[%clk 0:00:06.8]} 46... Kg8 {[%clk 0:00:09.8]} 47. Nf6+
{[%clk 0:00:08.2]} 47... Kf7 {[%clk 0:00:09.7]} 48. Nd5+ {[%clk 0:00:06.7]}
48... Kg8 {[%clk 0:00:10.6]} 49. Nf6+ {[%clk 0:00:08.1]} 49... Kf8 {[%clk
0:00:09.8]} 50. Nd5+ {[%clk 0:00:06.2]} 50... Kg8 {[%clk 0:00:11.3]} 51. Nf6+
{[%clk 0:00:07.5]} 51... Kf7 {[%clk 0:00:12.4]} 52. Nxe8+ {[%clk 0:00:06.6]}
52... Kxe8 {[%clk 0:00:13.6]} 53. Qxb5+ {[%clk 0:00:08.2]} 53... Ke7 {[%clk
0:00:14.1]} 54. Qe5+ {[%clk 0:00:07.9]} 54... Kf8 {[%clk 0:00:15.1]} 55. Qxa5
{[%clk 0:00:07]} 55... Qxf2+ {[%clk 0:00:15.8]} 56. Kh3 {[%clk 0:00:08.4]} 56...
Qf1+ {[%clk 0:00:14.9]} 57. Kg4 {[%clk 0:00:09.8]} 57... Qe2+ {[%clk 0:00:16.4]}
58. Kf4 {[%clk 0:00:09.9]} 58... Qf2+ {[%clk 0:00:17.8]} 59. Kg4 {[%clk
0:00:08.4]} 59... Qe2+ {[%clk 0:00:19.1]} 60. Kf4 {[%clk 0:00:07.6]} 60... Qf2+
{[%clk 0:00:20.5]} 61. Kg4 {[%clk 0:00:08.4]} 61... Qe2+ {[%clk 0:00:21.8]} 62.
Kf4 {[%clk 0:00:09.3]} 62... Qd2+ {[%clk 0:00:23]} 63. Kg4 {[%clk 0:00:10.1]}
63... Qxa5 {[%clk 0:00:23.7]} 0-1

[Event "*** Titled Tuesday Blitz"]
[Site "Chess.com"]
[Date "2019.02.05"]
[Round "10"]
[White "AlexTriapishko"]
[Black "hurricane7791"]
[Result "1/2-1/2"]
[WhiteElo "2772"]
[BlackElo "2690"]
[TimeControl "180+2"]
[EndTime "15:30:03 PST"]
[Termination "Game drawn by agreement"]

1. c4 {[%clk 0:02:47.5]} 1... c5 {[%clk 0:03:00.2]} 2. Nc3 {[%clk 0:02:48.1]}
2... Nc6 {[%clk 0:03:01.2]} 3. g3 {[%clk 0:02:46.6]} 3... g6 {[%clk 0:03:02.1]}
4. Bg2 {[%clk 0:02:47.2]} 4... Bg7 {[%clk 0:03:03.6]} 5. Nf3 {[%clk 0:02:46]}
5... e6 {[%clk 0:03:04.9]} 6. O-O {[%clk 0:02:44.7]} 6... Nge7 {[%clk
0:03:05.8]} 7. d4 {[%clk 0:02:45.8]} 7... cxd4 {[%clk 0:03:03.5]} 8. Nb5 {[%clk
0:02:46.3]} 8... d5 {[%clk 0:02:56.2]} 9. cxd5 {[%clk 0:02:20.2]} 9... Nxd5
{[%clk 0:02:52.6]} 10. Nbxd4 {[%clk 0:02:19.6]} 10... Nxd4 {[%clk 0:02:54]} 11.
Nxd4 {[%clk 0:02:21.5]} 11... O-O {[%clk 0:02:55.6]} 12. e4 {[%clk 0:02:10.1]}
12... Nb4 {[%clk 0:02:54.3]} 13. Be3 {[%clk 0:02:06.4]} 13... e5 {[%clk
0:02:54.6]} 14. Nb5 {[%clk 0:02:07.1]} 14... Qa5 {[%clk 0:02:33.6]} 15. Qe2
{[%clk 0:01:24.9]} 15... Nc6 {[%clk 0:02:31.5]} 16. Rfd1 {[%clk 0:01:20.7]}
16... Be6 {[%clk 0:02:31.9]} 17. a3 {[%clk 0:01:09.7]} 17... Rfd8 {[%clk
0:02:23.6]} 18. b4 {[%clk 0:00:58.6]} 18... Qa6 {[%clk 0:02:24.6]} 19. Bf1
{[%clk 0:00:54.5]} 19... Qa4 {[%clk 0:01:35.9]} 20. Nc7 {[%clk 0:00:41.7]} 20...
Rac8 {[%clk 0:01:35.6]} 21. Nxe6 {[%clk 0:00:41.1]} 21... fxe6 {[%clk
0:01:37.5]} 22. Rxd8+ {[%clk 0:00:36.5]} 22... Rxd8 {[%clk 0:01:38.2]} 23. Qc4
{[%clk 0:00:31.1]} 23... Re8 {[%clk 0:01:39]} 24. b5 {[%clk 0:00:23.2]} 24...
Qxc4 {[%clk 0:01:39]} 25. Bxc4 {[%clk 0:00:25.1]} 25... Nd4 {[%clk 0:01:40.9]}
26. Bxd4 {[%clk 0:00:21]} 26... exd4 {[%clk 0:01:42.8]} 27. Re1 {[%clk
0:00:22.5]} 27... Kf7 {[%clk 0:01:43.1]} 28. e5 {[%clk 0:00:17.2]} 28... Rc8
{[%clk 0:01:44]} 29. Bf1 {[%clk 0:00:09.8]} 29... Rc5 {[%clk 0:01:43.9]} 30. f4
{[%clk 0:00:10.6]} 30... Rc3 {[%clk 0:01:44.4]} 31. a4 {[%clk 0:00:11.3]} 31...
Bf8 {[%clk 0:01:45.9]} 32. Rd1 {[%clk 0:00:10.4]} 32... Bc5 {[%clk 0:01:46.7]}
33. Kg2 {[%clk 0:00:11.1]} 33... Ra3 {[%clk 0:01:47.3]} 34. Bd3 {[%clk
0:00:07.9]} 34... Rxa4 {[%clk 0:01:46.6]} 35. Kf3 {[%clk 0:00:09.5]} 35... Ra2
{[%clk 0:01:46.8]} 36. h4 {[%clk 0:00:09.8]} 36... Ra3 {[%clk 0:01:43.1]} 37. g4
{[%clk 0:00:07.8]} 37... Be7 {[%clk 0:01:35.1]} 38. Ke4 {[%clk 0:00:07.1]} 38...
Bc5 {[%clk 0:01:33.2]} 39. h5 {[%clk 0:00:06.4]} 39... Ra2 {[%clk 0:01:33]} 40.
hxg6+ {[%clk 0:00:06.2]} 40... hxg6 {[%clk 0:01:34.9]} 41. Rh1 {[%clk
0:00:07.6]} 41... Kg7 {[%clk 0:01:35.2]} 42. f5 {[%clk 0:00:07.4]} 42... gxf5+
{[%clk 0:01:35.1]} 43. gxf5 {[%clk 0:00:09.3]} 43... exf5+ {[%clk 0:01:35.5]}
44. Kd5 {[%clk 0:00:09.4]} 44... Bb4 {[%clk 0:01:32.9]} 45. Bxf5 {[%clk
0:00:10.1]} 45... b6 {[%clk 0:01:27.7]} 46. Rh7+ {[%clk 0:00:10.9]} 46... Kf8
{[%clk 0:01:29.1]} 47. Rd7 {[%clk 0:00:06.9]} 47... d3 {[%clk 0:01:28.2]} 48.
Bxd3 {[%clk 0:00:07.2]} 48... Rd2 {[%clk 0:01:27.7]} 49. Kc4 {[%clk 0:00:06]}
49... Bc5 {[%clk 0:01:26.6]} 50. e6 {[%clk 0:00:07.2]} 50... Rd1 {[%clk
0:01:24.1]} 51. Rxa7 {[%clk 0:00:07.3]} 51... Re1 {[%clk 0:01:21.8]} 52. Kd5
{[%clk 0:00:05.5]} 52... Rd1 {[%clk 0:01:23.3]} 53. Rf7+ {[%clk 0:00:06]} 53...
Ke8 {[%clk 0:01:22.5]} 54. Rf3 {[%clk 0:00:07.9]} 54... Ke7 {[%clk 0:01:22.8]}
55. Rf7+ {[%clk 0:00:07.8]} 55... Ke8 {[%clk 0:01:23.6]} 56. Kc4 {[%clk
0:00:09.3]} 56... Rc1+ {[%clk 0:01:23.9]} 57. Kb3 {[%clk 0:00:10.4]} 57... Re1
{[%clk 0:01:24.8]} 58. Bf5 {[%clk 0:00:09.2]} 58... Re5 {[%clk 0:01:26]} 59. Kc4
{[%clk 0:00:09.4]} 59... Bg1 {[%clk 0:01:25.6]} 60. Kd3 {[%clk 0:00:08]} 60...
Bc5 {[%clk 0:01:26.1]} 61. Bg4 {[%clk 0:00:07.7]} 61... Re3+ {[%clk 0:01:26.6]}
62. Kd2 {[%clk 0:00:08]} 62... Kd8 {[%clk 0:01:24]} 63. Rd7+ {[%clk 0:00:07.6]}
63... Ke8 {[%clk 0:01:25.2]} 64. Bh5+ {[%clk 0:00:07.9]} 64... Kf8 {[%clk
0:01:26.5]} 65. Rf7+ {[%clk 0:00:08.5]} 65... Kg8 {[%clk 0:01:27.1]} 66. Bg4
{[%clk 0:00:10.1]} 66... Kh8 {[%clk 0:01:25.5]} 67. Rf5 {[%clk 0:00:08.8]} 67...
Re4 {[%clk 0:01:23.2]} 68. Rh5+ {[%clk 0:00:04.8]} 68... Kg7 {[%clk 0:01:23.4]}
69. Bh3 {[%clk 0:00:05.4]} 69... Kf6 {[%clk 0:01:24]} 70. Kd3 {[%clk 0:00:05.3]}
70... Rd4+ {[%clk 0:01:23]} 71. Kc3 {[%clk 0:00:05.7]} 71... Re4 {[%clk
0:01:24.5]} 72. Rh7 {[%clk 0:00:06]} 72... Kg6 {[%clk 0:01:24]} 73. Rh8 {[%clk
0:00:03.5]} 73... Kg7 {[%clk 0:01:14.8]} 74. Rh5 {[%clk 0:00:03.9]} 74... Kg6
{[%clk 0:01:14.5]} 75. Bf5+ {[%clk 0:00:05.3]} 75... Kxh5 {[%clk 0:01:14.2]} 76.
Bxe4 {[%clk 0:00:07.2]} 76... Kg5 {[%clk 0:01:15.6]} 77. Kc4 {[%clk 0:00:08.4]}
77... Kf6 {[%clk 0:01:17]} 78. Kd5 {[%clk 0:00:09.8]} 78... Ke7 {[%clk
0:01:18.4]} 79. Bf5 {[%clk 0:00:11.1]} 79... Bg1 {[%clk 0:01:19.8]} 1/2-1/2

[Event "*** Titled Tuesday Blitz"]
[Site "Chess.com"]
[Date "2019.02.05"]
[Round "10"]
[White "Zq1"]
[Black "staz_staz"]
[Result "1-0"]
[WhiteElo "2510"]
[BlackElo "2355"]
[TimeControl "180+2"]
[EndTime "15:30:07 PST"]
[Termination "Zq1 won on time"]

1. d4 {[%clk 0:03:01.9]} 1... d5 {[%clk 0:02:52.9]} 2. c4 {[%clk 0:03:02.7]}
2... dxc4 {[%clk 0:02:53.3]} 3. e3 {[%clk 0:03:03.1]} 3... Nf6 {[%clk
0:02:53.7]} 4. Bxc4 {[%clk 0:03:03.8]} 4... a6 {[%clk 0:02:54.5]} 5. Nf3 {[%clk
0:03:04.4]} 5... b5 {[%clk 0:02:49.6]} 6. Be2 {[%clk 0:03:05.2]} 6... Bb7 {[%clk
0:02:50.3]} 7. a4 {[%clk 0:03:05.2]} 7... b4 {[%clk 0:02:48.4]} 8. O-O {[%clk
0:03:05.6]} 8... e6 {[%clk 0:02:49.1]} 9. Nbd2 {[%clk 0:03:06.6]} 9... Be7
{[%clk 0:02:49]} 10. Nb3 {[%clk 0:03:05.9]} 10... Nbd7 {[%clk 0:02:47.6]} 11.
Qc2 {[%clk 0:03:05.8]} 11... O-O {[%clk 0:02:48.1]} 12. Na5 {[%clk 0:03:06.2]}
12... Be4 {[%clk 0:02:47.7]} 13. Bd3 {[%clk 0:03:03.2]} 13... Bxf3 {[%clk
0:02:46]} 14. gxf3 {[%clk 0:03:03.6]} 14... Bd6 {[%clk 0:02:39.9]} 15. Nc6
{[%clk 0:02:59.4]} 15... Qe8 {[%clk 0:02:33.5]} 16. f4 {[%clk 0:03:00.3]} 16...
Ng4 {[%clk 0:02:19.4]} 17. h3 {[%clk 0:02:55.8]} 17... Nh6 {[%clk 0:02:15.5]}
18. Bxh7+ {[%clk 0:02:53.1]} 18... Kh8 {[%clk 0:02:15.9]} 19. Be4 {[%clk
0:02:54.5]} 19... f5 {[%clk 0:02:15.8]} 20. Bg2 {[%clk 0:02:54.9]} 20... Qh5
{[%clk 0:02:15.3]} 21. Bd2 {[%clk 0:02:51.9]} 21... Rf6 {[%clk 0:02:16.5]} 22.
Ne5 {[%clk 0:02:50]} 22... Bxe5 {[%clk 0:01:56.8]} 23. fxe5 {[%clk 0:02:30.8]}
23... Rg6 {[%clk 0:01:57.3]} 24. f3 {[%clk 0:02:31.5]} 24... Qxh3 {[%clk
0:01:51.6]} 25. Bxb4 {[%clk 0:02:07.1]} 25... Rb8 {[%clk 0:01:48.3]} 26. Ba3
{[%clk 0:02:07.6]} 26... Nb6 {[%clk 0:01:26.5]} 27. Rf2 {[%clk 0:02:02.1]} 27...
Nd5 {[%clk 0:01:27.5]} 28. Re1 {[%clk 0:01:58.7]} 28... Qg3 {[%clk 0:01:06]} 29.
b3 {[%clk 0:01:13.3]} 29... f4 {[%clk 0:01:03.4]} 30. Bc1 {[%clk 0:01:12.9]}
30... Nf5 {[%clk 0:00:57.2]} 31. exf4 {[%clk 0:01:09.7]} 31... Nh4 {[%clk
0:00:57.6]} 32. Kf1 {[%clk 0:01:10.7]} 32... Rxb3 {[%clk 0:00:48.5]} 33. Qxb3
{[%clk 0:01:05.1]} 33... Nxg2 {[%clk 0:00:48.3]} 34. Qc2 {[%clk 0:00:57.7]}
34... Ngxf4 {[%clk 0:00:47.8]} 35. Rh2+ {[%clk 0:00:55.7]} 35... Kg8 {[%clk
0:00:46.1]} 36. Qf2 {[%clk 0:00:51.4]} 36... Qxf2+ {[%clk 0:00:21.1]} 37. Rxf2
{[%clk 0:00:47.7]} 37... Nd3 {[%clk 0:00:22.4]} 38. Rd1 {[%clk 0:00:44.1]} 38...
Nxf2 {[%clk 0:00:21.1]} 39. Kxf2 {[%clk 0:00:45.7]} 39... Kf7 {[%clk 0:00:17.3]}
40. Bd2 {[%clk 0:00:46.6]} 40... Ke7 {[%clk 0:00:17.7]} 41. Rb1 {[%clk
0:00:47.6]} 41... Kd7 {[%clk 0:00:18.5]} 42. Rb8 {[%clk 0:00:46.9]} 42... Kc6
{[%clk 0:00:10.1]} 43. a5 {[%clk 0:00:47.2]} 43... Ne7 {[%clk 0:00:07.5]} 44.
Ra8 {[%clk 0:00:42.1]} 44... Kb7 {[%clk 0:00:07.9]} 45. Re8 {[%clk 0:00:41.9]}
45... Nf5 {[%clk 0:00:08.9]} 46. Be3 {[%clk 0:00:20]} 46... Nh4 {[%clk 0:00:09]}
47. Rh8 {[%clk 0:00:20.2]} 47... Nf5 {[%clk 0:00:08.5]} 48. Re8 {[%clk
0:00:18.2]} 48... Nh4 {[%clk 0:00:08.6]} 49. Re7 {[%clk 0:00:19.5]} 49... Rg2+
{[%clk 0:00:08.2]} 50. Kf1 {[%clk 0:00:19.9]} 50... Ra2 {[%clk 0:00:08.9]} 51.
Rxe6 {[%clk 0:00:20.5]} 51... Nxf3 {[%clk 0:00:10]} 52. Re7 {[%clk 0:00:19.3]}
52... Nh2+ {[%clk 0:00:08.4]} 53. Ke1 {[%clk 0:00:19.5]} 53... Nf3+ {[%clk
0:00:07.1]} 54. Kd1 {[%clk 0:00:20.4]} 54... g5 {[%clk 0:00:08]} 55. Rg7 {[%clk
0:00:19.4]} 55... Kc6 {[%clk 0:00:07.3]} 56. e6 {[%clk 0:00:19.9]} 56... Kd6
{[%clk 0:00:06.2]} 57. e7 {[%clk 0:00:19]} 57... Kd7 {[%clk 0:00:07.1]} 58. Rf7
{[%clk 0:00:18.2]} 58... g4 {[%clk 0:00:06.1]} 59. d5 {[%clk 0:00:16.6]} 59...
Ne5 {[%clk 0:00:05.4]} 60. Rg7 {[%clk 0:00:15.1]} 60... g3 {[%clk 0:00:04.5]}
61. Bc5 {[%clk 0:00:12.6]} 61... Ra1+ {[%clk 0:00:03.2]} 62. Ke2 {[%clk
0:00:12.2]} 1-0

[Event "*** Titled Tuesday Blitz"]
[Site "Chess.com"]
[Date "2019.02.05"]
[Round "10"]
[White "justantan"]
[Black "Keaton87"]
[Result "1/2-1/2"]
[WhiteElo "2704"]
[BlackElo "2556"]
[TimeControl "180+2"]
[EndTime "15:30:15 PST"]
[Termination "Game drawn by agreement"]

1. e4 {[%clk 0:03:01.9]} 1... c5 {[%clk 0:03:00.9]} 2. Nf3 {[%clk 0:03:02.8]}
2... e6 {[%clk 0:03:02.1]} 3. d4 {[%clk 0:03:03.7]} 3... cxd4 {[%clk 0:03:03.3]}
4. Nxd4 {[%clk 0:03:05.6]} 4... a6 {[%clk 0:03:04.6]} 5. Bd3 {[%clk 0:03:04.8]}
5... Bc5 {[%clk 0:03:04.7]} 6. Nb3 {[%clk 0:03:05.4]} 6... Be7 {[%clk
0:03:05.7]} 7. Qg4 {[%clk 0:03:06]} 7... g6 {[%clk 0:03:06.5]} 8. Qe2 {[%clk
0:03:07.1]} 8... d6 {[%clk 0:03:05.9]} 9. O-O {[%clk 0:03:08]} 9... Nd7 {[%clk
0:03:04.4]} 10. a4 {[%clk 0:03:05.7]} 10... b6 {[%clk 0:03:01.3]} 11. Na3 {[%clk
0:03:06]} 11... Qc7 {[%clk 0:03:00.3]} 12. Nc4 {[%clk 0:03:05.8]} 12... Bb7
{[%clk 0:03:00.2]} 13. Bf4 {[%clk 0:02:46.6]} 13... Ne5 {[%clk 0:02:46.2]} 14.
Nxe5 {[%clk 0:02:30.9]} 14... dxe5 {[%clk 0:02:47]} 15. Be3 {[%clk 0:02:32.2]}
15... h5 {[%clk 0:02:39.9]} 16. f4 {[%clk 0:02:27.8]} 16... Nf6 {[%clk
0:02:36.8]} 17. fxe5 {[%clk 0:02:27.9]} 17... Ng4 {[%clk 0:02:33.5]} 18. Bf4
{[%clk 0:02:25]} 18... Nxe5 {[%clk 0:02:26.3]} 19. Kh1 {[%clk 0:02:25.1]} 19...
Bf6 {[%clk 0:02:12.7]} 20. Nd2 {[%clk 0:02:16.4]} 20... Qd8 {[%clk 0:01:55.5]}
21. Rad1 {[%clk 0:02:04]} 21... O-O {[%clk 0:01:53]} 22. Nf3 {[%clk 0:01:58.4]}
22... Nxf3 {[%clk 0:01:49.1]} 23. Rxf3 {[%clk 0:01:59.1]} 23... Bg7 {[%clk
0:01:40.1]} 24. Qf2 {[%clk 0:01:42.3]} 24... Bxe4 {[%clk 0:01:24.1]} 25. Rg3
{[%clk 0:01:35.7]} 25... Bxd3 {[%clk 0:01:20.3]} 26. Rgxd3 {[%clk 0:01:35.6]}
26... Qf6 {[%clk 0:01:21.3]} 27. c3 {[%clk 0:01:30.7]} 27... g5 {[%clk
0:01:17.3]} 28. Be3 {[%clk 0:01:30.7]} 28... Qxf2 {[%clk 0:01:18.2]} 29. Bxf2
{[%clk 0:01:32.6]} 29... b5 {[%clk 0:01:16.3]} 30. axb5 {[%clk 0:01:07.4]} 30...
axb5 {[%clk 0:01:18.2]} 31. Bc5 {[%clk 0:01:08.1]} 31... Rfc8 {[%clk 0:01:15.3]}
32. Be7 {[%clk 0:01:08.5]} 32... Ra2 {[%clk 0:01:06.3]} 33. Bxg5 {[%clk
0:00:52.8]} 33... Rxb2 {[%clk 0:01:06.6]} 34. Bd2 {[%clk 0:00:53.5]} 34... Rc2
{[%clk 0:00:57.4]} 35. Rg3 {[%clk 0:00:47.7]} 35... Kh7 {[%clk 0:00:57.9]} 36.
Rg5 {[%clk 0:00:46.3]} 36... Bxc3 {[%clk 0:00:18.2]} 37. Bxc3 {[%clk 0:00:40.5]}
37... R8xc3 {[%clk 0:00:16.2]} 38. Rxh5+ {[%clk 0:00:41.6]} 38... Kg6 {[%clk
0:00:17]} 39. Rxb5 {[%clk 0:00:43]} 39... Rc1 {[%clk 0:00:17.2]} 40. Rg1 {[%clk
0:00:41.1]} 40... f5 {[%clk 0:00:14.4]} 41. h4 {[%clk 0:00:40.1]} 41... Kf6
{[%clk 0:00:10.5]} 42. Rb6 {[%clk 0:00:36.3]} 42... R1c2 {[%clk 0:00:04.5]} 43.
Re1 {[%clk 0:00:35]} 43... Rc6 {[%clk 0:00:06.2]} 44. Rb8 {[%clk 0:00:31.9]}
44... R2c4 {[%clk 0:00:06]} 45. g3 {[%clk 0:00:25.7]} 45... Rc2 {[%clk
0:00:07.2]} 46. Rh8 {[%clk 0:00:24.6]} 46... Rd2 {[%clk 0:00:07]} 47. Rh6+
{[%clk 0:00:25]} 47... Kf7 {[%clk 0:00:07.9]} 48. Rh7+ {[%clk 0:00:25.3]} 48...
Kg6 {[%clk 0:00:08.7]} 49. Re7 {[%clk 0:00:23.8]} 49... Kf6 {[%clk 0:00:08.1]}
50. Rh7 {[%clk 0:00:24.7]} 50... Kg6 {[%clk 0:00:09.1]} 51. Re7 {[%clk
0:00:25.4]} 51... Kf6 {[%clk 0:00:06.5]} 52. Rh7 {[%clk 0:00:20.2]} 52... Rb2
{[%clk 0:00:06]} 53. Rh6+ {[%clk 0:00:19.2]} 53... Kf7 {[%clk 0:00:07.4]} 54.
Rh7+ {[%clk 0:00:18.2]} 54... Kg6 {[%clk 0:00:08.6]} 55. Re7 {[%clk 0:00:18.8]}
55... Kf6 {[%clk 0:00:05]} 56. Rh7 {[%clk 0:00:19.8]} 56... Kg6 {[%clk
0:00:06.5]} 57. Re7 {[%clk 0:00:20.5]} 57... Kf6 {[%clk 0:00:07.7]} 58. Rh7
{[%clk 0:00:18.3]} 58... Ra2 {[%clk 0:00:09.3]} 59. h5 {[%clk 0:00:18]} 59...
Kg5 {[%clk 0:00:08.8]} 60. h6 {[%clk 0:00:14.8]} 60... Rcc2 {[%clk 0:00:07.5]}
61. Rg7+ {[%clk 0:00:13.4]} 61... Kxh6 {[%clk 0:00:08.5]} 62. Re7 {[%clk
0:00:14.4]} 62... Kg5 {[%clk 0:00:06.7]} 63. R7xe6 {[%clk 0:00:14.8]} 63... Kg4
{[%clk 0:00:07.8]} 64. Rg6+ {[%clk 0:00:15.6]} 64... Kf3 {[%clk 0:00:09.1]} 65.
Rf1+ {[%clk 0:00:16.1]} 65... Rf2 {[%clk 0:00:10]} 66. Rxf2+ {[%clk 0:00:16.9]}
66... Rxf2 {[%clk 0:00:11.6]} 67. Rg5 {[%clk 0:00:15.4]} 67... Ra2 {[%clk
0:00:08]} 68. Rxf5+ {[%clk 0:00:15.2]} 68... Kxg3 {[%clk 0:00:09.3]} 69. Rg5+
{[%clk 0:00:16.1]} 69... Kh3 {[%clk 0:00:10]} 1/2-1/2